bitfinex/quotes_BTCUSD_20220307
["timestamp","ask_amount","ask_price","bid_price","bid_amount"]
[1646654946191,0.207513,38524.0,38523.0,0.389905]
[1646654946587,0.207513,38524.0,38523.0,0.439905]
[1646654946787,0.107513,38524.0,38523.0,0.439905]
[1646654947048,0.908613,38524.0,38523.0,0.439905]
[1646654947249,1.303613,38524.0,38523.0,0.439905]
[1646654947548,1.003613,38524.0,38523.0,0.439905]
[1646654949050,1.103613,38524.0,38523.0,0.439905]
[1646654949853,1.0531,38524.0,38523.0,0.439905]
[1646654950053,1.0531,38524.0,38523.0,0.64933544]
[1646654950255,1.103613,38524.0,38523.0,0.439905]
[1646654952193,0.03961867,38525.0,38523.0,0.9497157]
[1646654952383,0.03961867,38525.0,38524.0,0.05]
[1646654952584,0.09161867,38525.0,38524.0,0.05]
[1646654952782,0.152,38525.0,38524.0,0.244815]
[1646654952983,0.1,38525.0,38524.0,0.244815]
[1646654953183,0.064937,38528.0,38526.0,0.1998]
[1646654953682,0.064937,38528.0,38527.0,0.05]
[1646654954283,0.164937,38528.0,38527.0,0.05]
[1646654954531,0.966037,38528.0,38527.0,0.05]
[1646654955536,1.06597241,38528.0,38527.0,0.05]
[1646654955736,1.06097241,38528.0,38527.0,0.05]
[1646654955935,0.961037,38528.0,38527.0,0.05]
[1646654956740,1.060937,38528.0,38527.0,0.05]
[1646654956937,1.112937,38528.0,38527.0,0.31]
[1646654957135,1.412937,38528.0,38527.0,0.31]
[1646654958288,1.417937,38528.0,38527.0,0.31]
[1646654958689,1.417937,38528.0,38527.0,0.3053]
[1646654958892,1.428341,38528.0,38527.0,0.3053]
[1646654959292,1.417937,38528.0,38527.0,0.3053]
[1646654959493,1.51287241,38528.0,38527.0,0.3053]
[1646654959693,1.61287241,38528.0,38527.0,0.3053]
[1646654959892,1.61287241,38528.0,38526.0,0.00026312]
[1646654959893,0.8464,38527.0,38526.0,0.00026312]
[1646654960094,0.8464,38527.0,38521.0,0.5]
[1646654960095,0.8011,38525.0,38521.0,0.5]
[1646654960304,0.8011,38523.0,38521.0,0.5]
[1646654960495,0.8011,38523.0,38518.0,0.42]
[1646654960496,0.953,38522.0,38518.0,0.42]
[1646654960696,1.15293541,38522.0,38518.0,0.42]
[1646654960896,0.9011,38519.0,38518.0,0.42]
[1646654961095,0.9011,38519.0,38516.0,0.194894]
[1646654961096,0.95601997,38517.0,38516.0,0.194894]
[1646654961294,0.15491997,38517.0,38516.0,0.194894]
[1646654961695,0.0999,38519.0,38516.0,0.194894]
[1646654962134,0.164852,38519.0,38516.0,0.37459766]
[1646654962335,0.09993541,38528.0,38516.0,0.37459766]
[1646654962336,0.09993541,38528.0,38517.0,0.3]
[1646654962543,0.00086458,38529.0,38517.0,0.3]
[1646654962544,0.1,38521.0,38517.0,0.3]
[1646654962838,0.00086458,38529.0,38522.0,0.16772211]
[1646654962839,0.1,38527.0,38522.0,0.16772211]
[1646654963034,0.1,38525.0,38522.0,0.05]
[1646654963435,0.1,38525.0,38522.0,0.114943]
[1646654963635,0.064943,38524.0,38523.0,0.1999]
[1646654964438,0.164943,38524.0,38523.0,0.1999]
[1646654965237,0.966043,38524.0,38523.0,0.1999]
[1646654965439,0.164943,38524.0,38523.0,0.1999]
[1646654966083,0.164943,38524.0,38523.0,0.6199]
[1646654966084,0.168943,38524.0,38523.0,0.6199]
[1646654966285,0.168943,38524.0,38523.0,1.0299]
[1646654966483,0.970043,38524.0,38523.0,1.0299]
[1646654966683,0.168943,38524.0,38523.0,1.0299]
[1646654967287,0.970043,38524.0,38523.0,1.0299]
[1646654967486,0.966043,38524.0,38523.0,1.0299]
[1646654969386,0.164943,38524.0,38523.0,1.0299]
[1646654970436,0.966043,38524.0,38523.0,0.8799]
[1646654971036,1.016043,38524.0,38523.0,0.8799]
[1646654972537,1.016043,38524.0,38523.0,0.9299]
[1646654973138,0.214943,38524.0,38523.0,0.9299]
[1646654973392,0.214943,38524.0,38523.0,1.14928844]
[1646654973393,0.164943,38524.0,38523.0,1.14928844]
[1646654973988,0.164943,38524.0,38523.0,1.37100687]
[1646654974190,0.80528228,38529.0,38523.0,1.14928844]
[1646654974390,1.00528228,38528.0,38527.0,0.1998]
[1646654974689,0.41355367,38530.0,38527.0,0.1998]
[1646654974690,0.114947,38529.0,38527.0,0.1998]
[1646654974898,0.8011,38528.0,38527.0,0.1998]
[1646654975089,0.9011,38528.0,38527.0,0.1998]
[1646654976892,0.1,38528.0,38527.0,0.4598]
[1646654977941,0.9011,38528.0,38527.0,0.4598]
[1646654978342,0.1,38528.0,38527.0,0.4598]
[1646654979142,0.9011,38528.0,38527.0,0.4598]
[1646654979540,1.2011,38528.0,38527.0,0.4598]
[1646654979941,1.30103541,38528.0,38527.0,0.4598]
[1646654980145,0.40393541,38528.0,38527.0,0.4598]
[1646654980342,0.31523223,38528.0,38527.0,0.4598]
[1646654980541,0.31523223,38528.0,38527.0,0.4548]
[1646654980792,0.104,38528.0,38527.0,0.4548]
[1646654980989,0.37611464,38529.0,38527.0,0.4548]
[1646654981190,0.8011,38527.0,38526.0,0.064946]
[1646654981389,1.3,38528.0,38526.0,0.064946]
[1646654981592,0.1,38527.0,38526.0,0.064946]
[1646654981790,0.1,38527.0,38526.0,0.129892]
[1646654982191,0.32163623,38527.0,38526.0,0.129892]
[1646654982590,0.31123223,38527.0,38526.0,0.129892]
[1646654982990,1.2,38528.0,38526.0,0.129892]
[1646654983392,0.1,38527.0,38526.0,0.129892]
[1646654983792,1.2,38528.0,38526.0,0.129892]
[1646654983991,0.1,38527.0,38526.0,0.129892]
[1646654984745,0.9011,38527.0,38526.0,0.064946]
[1646654985143,0.1,38527.0,38526.0,0.064946]
[1646654986348,0.104,38527.0,38526.0,0.064946]
[1646654987445,0.41712004,38527.0,38526.0,0.064946]
[1646654987645,0.41712004,38527.0,38526.0,0.324946]
[1646654988488,0.46990901,38527.0,38526.0,0.324946]
[1646654988689,0.129894,38530.0,38528.0,0.064927]
[1646654988690,0.36990901,38530.0,38528.0,0.064927]
[1646654988889,0.1,38529.0,38528.0,0.064927]
[1646654989287,0.03833265,38535.0,38528.0,0.064927]
[1646654989489,0.03833265,38535.0,38530.0,0.16300295]
[1646654989490,0.32258274,38534.0,38530.0,0.16300295]
[1646654989687,0.1,38532.0,38531.0,0.1998]
[1646654989889,0.164931,38532.0,38531.0,0.1998]
[1646654990492,0.164931,38532.0,38528.0,0.62985655]
[1646654990691,0.164931,38532.0,38528.0,0.564927]
[1646654990890,0.1,38530.0,38528.0,0.564927]
[1646654991090,0.229888,38530.0,38528.0,0.564927]
[1646654991291,0.229888,38530.0,38529.0,0.129859]
[1646654991492,0.1,38530.0,38529.0,0.129859]
[1646654993534,0.1,38530.0,38528.0,0.764827]
[1646654993935,0.1,38529.0,38528.0,0.764827]
[1646654994334,0.1,38529.0,38528.0,0.97781932]
[1646654996189,0.1,38529.0,38528.0,0.91289232]
[1646654996790,0.41718129,38529.0,38528.0,1.17289232]
[1646654998300,0.41718129,38529.0,38528.0,1.47289232]
[1646654998301,0.26433458,38529.0,38528.0,1.47289232]
[1646654998495,0.26433458,38530.0,38529.0,0.5]
[1646654998691,0.26433458,38531.0,38529.0,0.5]
[1646654998891,0.26433458,38531.0,38529.0,0.864924]
[1646654999094,0.26433458,38531.0,38529.0,0.564924]
[1646654999292,0.26433458,38531.0,38530.0,0.16737213]
[1646654999747,0.26433458,38532.0,38530.0,0.16737213]
[1646655000950,0.26433458,38532.0,38530.0,0.36717213]
[1646655001351,0.26433458,38533.0,38530.0,0.36717213]
[1646655001549,0.21145154,38531.0,38530.0,0.1998]
[1646655001752,0.26433458,38531.0,38530.0,0.1998]
[1646655001949,0.26433458,38531.0,38529.0,0.47726077]
[1646655001950,0.41718129,38531.0,38529.0,0.47726077]
[1646655002249,0.41718129,38530.0,38529.0,0.47726077]
[1646655002549,0.1,38530.0,38529.0,0.47726077]
[1646655004185,0.1,38530.0,38528.0,0.79404081]
[1646655004384,0.104,38530.0,38528.0,1.29404081]
[1646655004886,0.1,38529.0,38528.0,1.089747]
[1646655005085,0.41718129,38529.0,38528.0,1.089747]
[1646655005882,0.41718129,38529.0,38528.0,0.589747]
[1646655006284,0.1,38529.0,38528.0,0.589747]
[1646655006486,0.4171972,38529.0,38528.0,0.589747]
[1646655007439,0.4171972,38529.0,38528.0,0.639747]
[1646655008940,0.1,38529.0,38528.0,0.639747]
[1646655009340,0.4071972,38529.0,38528.0,0.639747]
[1646655009540,0.3171972,38529.0,38528.0,0.639747]
[1646655009940,0.4171972,38529.0,38528.0,0.639747]
[1646655010140,0.4171972,38529.0,38528.0,1.139747]
[1646655010343,0.4221972,38529.0,38528.0,1.139747]
[1646655010990,0.4221972,38529.0,38528.0,0.639747]
[1646655011591,0.4171972,38529.0,38528.0,0.639747]
[1646655011793,0.26429388,38529.0,38528.0,0.939747]
[1646655012097,0.21142215,38529.0,38528.0,0.939747]
[1646655012293,0.08619603,38532.0,38528.0,0.83451]
[1646655012693,0.08619603,38532.0,38529.0,0.07621]
[1646655012893,0.050513,38530.0,38529.0,0.114921]
[1646655013293,0.045513,38530.0,38529.0,0.114921]
[1646655014294,0.045513,38530.0,38529.0,0.141131]
[1646655015146,0.045513,38530.0,38529.0,0.114921]
[1646655015545,0.04395012,38530.0,38529.0,0.114921]
[1646655015747,0.04395012,38530.0,38529.0,0.28540096]
[1646655016349,0.04895012,38530.0,38529.0,0.31161096]
[1646655016748,0.04895012,38530.0,38529.0,0.28540096]
[1646655017053,0.04915012,38530.0,38529.0,0.28540096]
[1646655017246,0.04915012,38530.0,38529.0,0.31161096]
[1646655017648,0.04415012,38530.0,38529.0,0.31161096]
[1646655018048,0.04415012,38530.0,38529.0,0.114921]
[1646655018290,0.04815012,38530.0,38529.0,0.05]
[1646655018492,0.20015012,38530.0,38528.0,0.4598]
[1646655018687,0.4562,38530.0,38528.0,0.4598]
[1646655018987,0.1,38529.0,38528.0,0.4598]
[1646655019188,0.152,38529.0,38528.0,0.4598]
[1646655019587,0.56601352,38529.0,38528.0,0.28184731]
[1646655019787,0.56601352,38529.0,38526.0,0.70538719]
[1646655019788,2.0011,38528.0,38526.0,0.70538719]
[1646655019991,1.12222871,38527.0,38526.0,0.62649928]
[1646655020186,1.32222871,38527.0,38526.0,0.62649928]
[1646655020585,1.75127093,38527.0,38526.0,0.06223616]
[1646655020785,1.85120634,38527.0,38526.0,0.06223616]
[1646655020992,1.85120634,38527.0,38519.0,0.15]
[1646655020993,2.0011,38526.0,38519.0,0.15]
[1646655021190,1.18323732,38520.0,38519.0,0.15]
[1646655021386,1.18323732,38520.0,38519.0,0.14965825]
[1646655021387,1.009757,38520.0,38519.0,0.14965825]
[1646655021588,1.109757,38520.0,38519.0,0.14965825]
[1646655021797,1.5640141,38520.0,38519.0,0.14965825]
[1646655022052,1.5640141,38520.0,38511.0,0.01]
[1646655022053,0.11478162,38513.0,38511.0,0.01]
[1646655022252,0.116978,38512.0,38511.0,0.01]
[1646655022452,0.4247569,38512.0,38511.0,0.074978]
[1646655022849,0.5247569,38512.0,38511.0,0.074978]
[1646655023253,0.313298,38512.0,38511.0,0.074978]
[1646655024456,0.313298,38512.0,38511.0,0.124978]
[1646655024653,0.116978,38512.0,38511.0,0.074978]
[1646655024851,0.111978,38512.0,38511.0,0.124978]
[1646655025454,0.064978,38512.0,38511.0,0.32776674]
[1646655025655,0.21478162,38513.0,38511.0,0.62776674]
[1646655025899,0.21478162,38513.0,38512.0,0.35]
[1646655025900,0.11478162,38513.0,38512.0,0.35]
[1646655026093,0.11478162,38513.0,38512.0,0.05]
[1646655026493,0.11478162,38513.0,38512.0,0.1995]
[1646655027097,0.11478162,38513.0,38512.0,0.4995]
[1646655027495,0.77845,38520.0,38515.0,0.19482519]
[1646655027695,0.77845,38520.0,38518.0,0.1998]
[1646655028093,0.77845,38520.0,38518.0,0.2498]
[1646655028295,0.77845,38520.0,38519.0,0.32621]
[1646655028296,0.388737,38520.0,38519.0,0.32621]
[1646655028494,0.1,38524.0,38520.0,0.064937]
[1646655028694,0.2114589,38525.0,38520.0,0.064937]
[1646655028695,0.3114589,38525.0,38520.0,0.064937]
[1646655028899,0.3114589,38525.0,38523.0,0.1998]
[1646655029097,0.3764009,38525.0,38523.0,0.1998]
[1646655029295,0.3764009,38525.0,38524.0,0.05]
[1646655029938,0.37510487,38525.0,38524.0,0.05]
[1646655030336,0.2764009,38525.0,38524.0,0.23512436]
[1646655030537,0.3764009,38525.0,38524.0,0.23512436]
[1646655031138,0.164942,38525.0,38524.0,0.23512436]
[1646655032444,0.164942,38525.0,38524.0,0.53512436]
[1646655032445,0.106,38525.0,38524.0,0.53512436]
[1646655032639,0.106,38525.0,38524.0,0.7400353]
[1646655032640,0.006,38525.0,38524.0,0.7400353]
[1646655033689,0.2114589,38529.0,38524.0,0.7400353]
[1646655034092,0.2114589,38529.0,38527.0,0.22601]
[1646655034291,0.0002,38530.0,38527.0,0.290934]
[1646655034490,0.0002,38530.0,38528.0,0.05]
[1646655035093,0.0002,38530.0,38527.0,0.064924]
[1646655035094,0.0002,38530.0,38527.0,0.114924]
[1646655035290,0.2116589,38530.0,38527.0,0.114924]
[1646655035491,0.2116589,38530.0,38528.0,0.1998]
[1646655035696,0.1,38529.0,38528.0,0.1998]
[1646655035892,0.36432726,38529.0,38528.0,0.1998]
[1646655036192,0.1,38529.0,38528.0,0.1998]
[1646655037246,0.1,38529.0,38528.0,0.2997]
[1646655037444,0.14395012,38529.0,38528.0,0.3097]
[1646655037843,0.44395012,38529.0,38528.0,0.2098]
[1646655038044,0.76114283,38529.0,38528.0,0.2098]
[1646655039247,0.44395012,38529.0,38528.0,0.2598]
[1646655039545,0.76114283,38529.0,38528.0,0.2598]
[1646655040550,0.76514283,38529.0,38528.0,0.2598]
[1646655040984,0.76354443,38529.0,38528.0,0.2598]
[1646655041185,0.66514283,38529.0,38528.0,0.2598]
[1646655041584,0.76514283,38529.0,38528.0,0.2598]
[1646655041785,0.76114283,38529.0,38528.0,0.2598]
[1646655041985,0.76114283,38529.0,38528.0,0.08868252]
[1646655042185,0.76114283,38529.0,38528.0,0.01]
[1646655042586,0.46114283,38529.0,38528.0,0.01]
[1646655042889,0.44758429,38529.0,38528.0,0.01]
[1646655043785,0.13039158,38529.0,38528.0,0.01]
[1646655044186,0.44758429,38529.0,38528.0,0.01]
[1646655044385,0.45258429,38529.0,38528.0,0.01]
[1646655046041,0.39953389,38529.0,38528.0,0.01]
[1646655046243,0.39953389,38529.0,38528.0,0.06]
[1646655046443,0.39453389,38529.0,38528.0,0.0885]
[1646655046742,0.39453389,38529.0,38528.0,0.01]
[1646655046943,0.39453389,38529.0,38528.0,0.07492968]
[1646655047343,0.13039158,38529.0,38528.0,0.07492968]
[1646655047545,0.13039158,38529.0,38528.0,0.01]
[1646655048588,0.13539158,38529.0,38528.0,0.01]
[1646655048788,0.34672133,38529.0,38528.0,0.01]
[1646655048989,0.24672133,38529.0,38528.0,0.01]
[1646655049288,0.13539158,38529.0,38528.0,0.01]
[1646655049693,0.13039158,38529.0,38528.0,0.01]
[1646655050592,0.4,38528.0,38527.0,0.02248587]
[1646655050791,0.21133172,38528.0,38527.0,0.02248587]
[1646655050994,0.21433172,38529.0,38527.0,0.32248587]
[1646655051196,0.003,38529.0,38527.0,0.32248587]
[1646655051392,0.003,38529.0,38528.0,0.15]
[1646655051592,0.003,38529.0,38527.0,0.35098587]
[1646655051791,0.0002,38530.0,38529.0,0.18092424]
[1646655052037,0.04415012,38530.0,38529.0,0.18092424]
[1646655052238,0.04415012,38530.0,38529.0,0.23092424]
[1646655052440,0.04415012,38530.0,38529.0,0.05]
[1646655052639,0.04815012,38530.0,38529.0,0.05]
[1646655052840,0.04815012,38530.0,38529.0,0.35]
[1646655053039,0.04815012,38530.0,38529.0,0.05]
[1646655053843,0.04415012,38530.0,38529.0,0.05]
[1646655054041,0.0002,38530.0,38529.0,0.05]
[1646655054243,0.04328308,38530.0,38529.0,0.05]
[1646655055895,0.14328308,38530.0,38529.0,0.05]
[1646655056098,0.14328308,38530.0,38527.0,0.02248587]
[1646655056290,0.1002,38530.0,38527.0,0.02248587]
[1646655056490,0.21131789,38528.0,38527.0,0.02248587]
[1646655056890,0.1,38528.0,38524.0,0.0285]
[1646655057091,0.129896,38527.0,38524.0,0.0285]
[1646655057291,0.1,38526.0,38524.0,0.0285]
[1646655057693,0.1,38525.0,38524.0,0.0285]
[1646655058094,0.1,38525.0,38524.0,0.0385]
[1646655058497,0.106,38525.0,38524.0,0.0385]
[1646655059536,0.106,38525.0,38524.0,0.0285]
[1646655059738,0.10585886,38525.0,38524.0,0.0285]
[1646655059939,0.32908931,38527.0,38524.0,0.0285]
[1646655060141,0.32908931,38527.0,38525.0,0.19467639]
[1646655060338,0.32908931,38527.0,38525.0,0.24467639]
[1646655060339,0.064947,38527.0,38525.0,0.24467639]
[1646655060540,0.1,38526.0,38525.0,0.1148048]
[1646655061142,0.1,38526.0,38525.0,0.0648048]
[1646655061342,0.1,38526.0,38525.0,0.1148048]
[1646655061544,0.36414231,38526.0,38525.0,0.0648048]
[1646655062040,0.36414231,38526.0,38525.0,0.03241725]
[1646655062442,0.36414231,38526.0,38523.0,0.0785]
[1646655062443,0.129914,38525.0,38523.0,0.0785]
[1646655062643,0.052,38524.0,38523.0,0.0785]
[1646655062840,0.052,38524.0,38523.0,0.0285]
[1646655062841,0.152,38524.0,38523.0,0.0285]
[1646655063041,0.152,38524.0,38522.0,0.0502628]
[1646655063288,0.26425774,38523.0,38522.0,0.0502628]
[1646655063488,0.41625774,38523.0,38522.0,0.0502628]
[1646655064290,0.41625774,38523.0,38522.0,0.05]
[1646655067141,0.152,38523.0,38522.0,0.05]
[1646655068539,0.4691074,38523.0,38522.0,0.05]
[1646655068843,0.152,38523.0,38522.0,0.05]
[1646655070244,0.152,38523.0,38522.0,0.0498668]
[1646655070445,0.36429649,38523.0,38522.0,0.0498668]
[1646655071493,0.1,38523.0,38522.0,0.0498668]
[1646655072192,0.1,38523.0,38522.0,0.3498668]
[1646655072591,0.31144279,38523.0,38522.0,0.0498668]
[1646655072796,0.31144279,38523.0,38522.0,0.3498668]
[1646655072991,0.26431104,38525.0,38522.0,0.3498668]
[1646655072992,0.1,38524.0,38522.0,0.3498668]
[1646655073191,0.1,38524.0,38522.0,0.21035222]
[1646655073999,0.21144279,38525.0,38523.0,0.42985339]
[1646655074192,0.21144279,38525.0,38523.0,0.12985339]
[1646655074393,0.21144279,38526.0,38524.0,0.3]
[1646655074645,0.21144279,38527.0,38525.0,0.393329]
[1646655074844,0.21144279,38528.0,38527.0,0.02621]
[1646655075448,0.26451104,38530.0,38524.0,0.3]
[1646655075646,0.21146404,38527.0,38524.0,0.3]
[1646655075847,0.21146404,38527.0,38523.0,0.55968739]
[1646655076145,0.21146404,38527.0,38524.0,0.064933]
[1646655076346,0.21146404,38527.0,38526.0,0.0285]
[1646655076549,0.21446404,38527.0,38526.0,0.0285]
[1646655076751,0.303,38527.0,38526.0,0.0285]
[1646655076947,0.3721074,38527.0,38522.0,0.74021791]
[1646655077247,0.32932,38523.0,38522.0,0.74021791]
[1646655077446,0.42932,38523.0,38522.0,0.74021791]
[1646655077645,0.42932,38523.0,38522.0,0.73995519]
[1646655078489,0.164944,38523.0,38522.0,0.73995519]
[1646655078691,0.169944,38523.0,38522.0,0.73995519]
[1646655078890,0.43429801,38523.0,38522.0,0.73995519]
[1646655079893,0.43429801,38523.0,38522.0,0.52557178]
[1646655079894,0.78129801,38523.0,38522.0,0.52557178]
[1646655080094,0.9343528,38523.0,38522.0,0.02132179]
[1646655080305,0.73428821,38523.0,38522.0,0.00296703]
[1646655080493,0.73428821,38523.0,38513.0,0.1971]
[1646655080494,1.2,38522.0,38513.0,0.1971]
[1646655080695,0.27645609,38514.0,38510.0,0.33467684]
[1646655080893,0.27645609,38514.0,38507.0,0.1964433]
[1646655080894,0.21149309,38513.0,38507.0,0.1964433]
[1646655081094,0.1,38511.0,38509.0,0.47966]
[1646655081602,0.31149309,38513.0,38509.0,0.47966]
[1646655081794,0.1,38512.0,38509.0,0.47966]
[1646655082559,0.1,38512.0,38509.0,0.47994184]
[1646655082960,0.064963,38511.0,38509.0,0.47994184]
[1646655083162,0.1,38512.0,38509.0,0.47994184]
[1646655083560,0.0999,38512.0,38509.0,0.4147]
[1646655083763,0.0999,38510.0,38509.0,0.00028184]
[1646655083964,0.1519,38510.0,38509.0,0.00028184]
[1646655084167,0.05165178,38510.0,38509.0,0.00028184]
[1646655084365,0.15165178,38510.0,38509.0,0.00028184]
[1646655084565,0.15665178,38510.0,38509.0,0.00028184]
[1646655084764,0.15665178,38510.0,38507.0,0.12991807]
[1646655084965,0.15665178,38510.0,38508.0,0.00028185]
[1646655085165,0.1,38509.0,38508.0,0.00028185]
[1646655085567,0.1,38509.0,38507.0,0.05019992]
[1646655085791,0.65,38508.0,38507.0,0.05019992]
[1646655086192,0.95,38508.0,38507.0,0.05019992]
[1646655086396,0.95,38508.0,38501.0,0.3471]
[1646655086397,1.19746,38508.0,38501.0,0.3471]
[1646655086595,1.47393609,38508.0,38501.0,0.15]
[1646655086798,0.31149309,38507.0,38501.0,0.15]
[1646655086994,0.052,38506.0,38501.0,0.15]
[1646655087198,0.31025242,38502.0,38501.0,0.15]
[1646655087399,0.36225242,38502.0,38501.0,0.15]
[1646655087599,0.82713942,38502.0,38501.0,0.15]
[1646655087796,0.62713942,38502.0,38501.0,0.04342518]
[1646655088599,0.63013942,38502.0,38501.0,0.04342518]
[1646655088997,0.419887,38502.0,38501.0,0.04342518]
[1646655089198,0.419887,38502.0,38500.0,0.00027538]
[1646655089642,0.064987,38499.0,38491.0,0.158476]
[1646655089943,0.064987,38499.0,38495.0,0.18749821]
[1646655090143,0.1,38498.0,38495.0,0.25247721]
[1646655090342,0.1,38498.0,38495.0,0.38223941]
[1646655090541,0.1,38498.0,38496.0,0.06498]
[1646655091346,0.1,38498.0,38495.0,0.19500254]
[1646655091845,0.1,38496.0,38495.0,0.0652491]
[1646655092047,0.1,38496.0,38495.0,0.06498776]
[1646655092242,0.1,38496.0,38495.0,0.0652491]
[1646655092643,0.105,38496.0,38495.0,0.0652491]
[1646655093043,0.105,38496.0,38495.0,0.00026134]
[1646655093288,0.105,38496.0,38494.0,0.0285]
[1646655093492,0.105,38496.0,38494.0,0.02876135]
[1646655093689,0.1,38495.0,38494.0,0.02876135]
[1646655094490,0.1,38495.0,38494.0,0.0285]
[1646655094694,0.105,38495.0,38494.0,0.0285]
[1646655095692,0.105,38495.0,38493.0,0.12996939]
[1646655095899,0.164992,38495.0,38493.0,0.13023148]
[1646655096495,0.164992,38495.0,38493.0,0.29911892]
[1646655096694,0.10121832,38497.0,38493.0,0.36411192]
[1646655096895,0.10121832,38497.0,38495.0,0.064985]
[1646655097145,0.00121832,38497.0,38495.0,0.064985]
[1646655097344,0.10121832,38497.0,38495.0,0.064985]
[1646655098642,0.10521832,38497.0,38495.0,0.064985]
[1646655099846,0.10121832,38497.0,38495.0,0.064985]
[1646655100246,0.10121832,38497.0,38496.0,0.0285]
[1646655101696,0.40121832,38497.0,38496.0,0.0285]
[1646655101895,0.130001,38496.0,38495.0,0.00026202]
[1646655102093,0.182001,38496.0,38495.0,0.00026202]
[1646655102695,0.282001,38496.0,38495.0,0.00026202]
[1646655102896,0.282001,38496.0,38489.0,0.0285]
[1646655103094,0.282001,38496.0,38494.0,0.00026203]
[1646655103297,0.182001,38496.0,38494.0,0.00026203]
[1646655103596,0.1,38495.0,38494.0,0.00026203]
[1646655103795,0.10121569,38495.0,38494.0,0.00026203]
[1646655103994,0.45321569,38495.0,38490.0,0.0285]
[1646655104195,0.45321569,38495.0,38493.0,0.00026203]
[1646655104399,0.3,38494.0,38493.0,0.00026203]
[1646655104671,0.51857,38494.0,38493.0,0.00026203]
[1646655105267,0.0999,38493.0,38488.0,0.3]
[1646655105467,0.21857,38494.0,38492.0,0.21435978]
[1646655105468,0.1,38494.0,38492.0,0.21435978]
[1646655106270,0.1,38494.0,38493.0,0.50787892]
[1646655106668,0.1,38494.0,38493.0,0.20787892]
[1646655106869,0.10121569,38495.0,38492.0,0.40930578]
[1646655107869,0.10121569,38495.0,38492.0,0.064988]
[1646655108700,0.10621569,38495.0,38492.0,0.064988]
[1646655109700,0.17120769,38495.0,38492.0,0.064988]
[1646655110000,0.16620769,38495.0,38493.0,0.0285]
[1646655110201,0.16620769,38495.0,38493.0,0.09348847]
[1646655110609,0.129979,38500.0,38496.0,0.23949369]
[1646655111200,0.1,38497.0,38496.0,0.23949369]
[1646655112445,0.1,38497.0,38496.0,0.28949369]
[1646655112650,0.106,38497.0,38496.0,0.28949369]
[1646655113947,0.1,38497.0,38496.0,0.28949369]
[1646655115810,0.55620216,38497.0,38496.0,0.28949369]
[1646655116008,0.29657012,38497.0,38496.0,0.23949369]
[1646655116510,0.39647012,38497.0,38496.0,0.23949369]
[1646655116709,0.40047012,38497.0,38496.0,0.23949369]
[1646655117208,0.40047012,38497.0,38496.0,0.28949369]
[1646655117411,0.30057012,38497.0,38496.0,0.28949369]
[1646655117610,0.19995012,38497.0,38496.0,0.28949369]
[1646655117811,0.14795012,38497.0,38496.0,0.28949369]
[1646655118012,0.14395012,38497.0,38496.0,0.28949369]
[1646655119111,0.14395012,38497.0,38496.0,0.43949369]
[1646655119313,0.19595012,38497.0,38496.0,0.28949369]
[1646655119547,0.59222635,38497.0,38496.0,0.28949369]
[1646655119747,0.19595012,38497.0,38496.0,0.28949369]
[1646655120555,0.40726022,38497.0,38496.0,0.28949369]
[1646655120750,0.40726188,38497.0,38496.0,0.28949369]
[1646655120948,0.40726193,38497.0,38496.0,0.28949369]
[1646655121151,0.40726193,38497.0,38496.0,0.23949369]
[1646655121152,0.50726193,38497.0,38496.0,0.23949369]
[1646655121352,0.29595012,38497.0,38496.0,0.23949369]
[1646655121750,0.59595012,38497.0,38496.0,0.23949369]
[1646655121953,0.67935012,38497.0,38496.0,0.23949369]
[1646655122453,0.67935012,38497.0,38496.0,0.28949369]
[1646655122752,0.68335012,38497.0,38496.0,0.28949369]
[1646655122952,0.68335012,38497.0,38496.0,0.28915193]
[1646655123797,0.68335012,38497.0,38496.0,0.31765193]
[1646655124397,0.94357934,38497.0,38496.0,0.31765193]
[1646655125702,0.67935012,38497.0,38496.0,0.31765193]
[1646655126100,0.37935012,38497.0,38496.0,0.31765193]
[1646655126698,0.67935012,38497.0,38496.0,0.31765193]
[1646655127143,0.84873215,38497.0,38496.0,0.31765193]
[1646655128045,1.16597179,38497.0,38496.0,0.31765193]
[1646655129144,0.84873215,38497.0,38496.0,0.31765193]
[1646655129945,0.91884507,38497.0,38496.0,0.31765193]
[1646655130344,0.74946304,38497.0,38496.0,0.31765193]
[1646655130800,0.37935012,38497.0,38496.0,0.31765193]
[1646655131801,0.37935012,38497.0,38496.0,1.00529403]
[1646655132798,0.38535012,38497.0,38496.0,1.00529403]
[1646655133200,0.68535012,38497.0,38496.0,1.00529403]
[1646655133401,0.85473215,38497.0,38496.0,1.00529403]
[1646655133606,0.38535012,38497.0,38496.0,1.00529403]
[1646655133801,0.55473215,38497.0,38496.0,1.00529403]
[1646655134006,0.37935012,38497.0,38496.0,1.00529403]
[1646655134851,0.69664859,38497.0,38496.0,1.00529403]
[1646655135450,0.59664859,38497.0,38496.0,1.00529403]
[1646655135652,0.59664859,38497.0,38496.0,1.30529403]
[1646655135653,0.14395012,38497.0,38496.0,1.30529403]
[1646655135850,0.14395012,38497.0,38496.0,1.00529403]
[1646655136051,0.14395012,38497.0,38496.0,0.97713579]
[1646655136453,0.14395012,38497.0,38496.0,1.18523194]
[1646655136652,0.31651711,38497.0,38496.0,1.48523194]
[1646655136851,0.21651711,38497.0,38496.0,1.48523194]
[1646655137052,0.26439897,38500.0,38496.0,1.48523194]
[1646655137053,0.21151711,38498.0,38496.0,1.48523194]
[1646655137251,0.21151711,38499.0,38498.0,0.21065294]
[1646655137451,0.38516719,38503.0,38498.0,0.51065294]
[1646655137452,0.31151711,38502.0,38498.0,0.51065294]
[1646655137654,0.21151711,38502.0,38498.0,0.56065294]
[1646655137850,0.37938583,38503.0,38498.0,0.56065294]
[1646655138050,0.21151711,38503.0,38498.0,0.56065294]
[1646655138501,0.21151711,38502.0,38498.0,0.56065294]
[1646655138700,0.21151711,38502.0,38501.0,0.1999]
[1646655138904,0.31151711,38503.0,38501.0,0.1999]